Cogmind - Beta 15 @@@ ROGUE MODE // 2025.08.17 @ 09:20:49 Player: Dadrick Result: Destroyed by H-61 Shepherd with Heavy Assault Cannon Performance ------------- Evolutions (3) 1500 Regions Visited (11) 2200 Robots Destroyed (212) 1060 Value Destroyed (8176) 8176 Prototype IDs (32) 640 Alien Tech Used (0) 0 Bonus (3560) 3560 TOTAL SCORE: 17136 Bonus ------- High Alert Combat Kills 1202 Follower Combat Kills 158 Entered Garrisons 400 Used RIF Installer 1500 Aligned with FarCom 300 Cogmind --------- Core Integrity 0/700 Matter 143/300 Energy 87/100 System Corruption 10% Temperature Cool (2) Movement Flying (34) Location -7/Factory Parts ------- > --- POWER (1) -------- (None) > --- PROPULSION (3) --- Xenon Bombardment Thruster Improved Cesium-ion Thruster > --- UTILITY (5) ------ Advanced Terrain Scan Processor Improved Salvage Targeting Computer System Shield > --- WEAPON (4) ------- Improved Datajack > --- INVENTORY (5) ---- Light Deuterium Engine Improved Heat Sink Small Storage Unit Proton Missile Launcher Remote Datajack Peak State ------------ > --- POWER ------------ Improved Deuterium Engine > --- PROPULSION ------- Improved Aluminum Leg Carbon-fiber Leg VSS Leg > --- UTILITY ---------- Huge Storage Unit Advanced Targeting Computer Hardened Medium Armor Plating > --- WEAPON ----------- XL Autogun Array > --- INVENTORY -------- Nuclear Core Light Treads Light Treads Light Treads Aluminum Leg Improved Heat Sink Improved Cooling System Large Storage Unit High-capacity Matter Pod Structural Scanner Seismic Detector Advanced Targeting Computer Core Analyzer ECM Suite Light Armor Plating Improved Light Armor Plating Shield Generator Relay Coupler [NC] Relay Coupler [NC] Relay Coupler [Grunt] Relay Coupler [Heavy] High-powered Tractor Beam Mini Grenade Launcher Remote Datajack Heavy Flail [Rating: 60] Favorites ----------- Power Improved Deuterium Engine Engine Improved Deuterium Engine Power Core Light Nuclear Core Propulsion Light Treads Treads Light Treads Leg Improved Aluminum Leg Wheel Armored Huge Wheel Hover Unit Aerolev Unit Flight Unit Xenon Bombardment Thruster Utility Huge Storage Unit Device Improved Heat Sink Storage Huge Storage Unit Processor Advanced Targeting Computer Hackware Hacking Suite Protection Hardened Light Armor Plating Weapon XL Autogun Subcomponent Energy Gun Beam Rifle Energy Cannon Cooled Particle Cannon Ballistic Gun XL Autogun Subcomponent Ballistic Cannon Advanced Assault Cannon Launcher Shock Bomb Launcher Special Weapon Remote Datajack Impact Weapon Heavy Flail Special Melee Weapon Improved Datajack Build | -11 -10 -10 -10 -9 -8 -8 -8 -8 -7 -7 -7 ------- Run | Yrd Mat Min Exi Min Mat Gar Mat Gar Fac Was Fac Slots Evolved 6 | . . . . . 4 . . . 2 . . Power . | . . . . . . . . . . . . Propulsion 1 | . . . . . 1 . . . . . . Utility 3 | . . . . . 1 . . . 2 . . Weapon 2 | . . . . . 2 . . . . . . Parts Attached 127 | 7 14 2 3 . 16 17 10 14 20 . 24 Power 9 | 1 1 1 . . 2 1 . 1 1 . 1 Engine 6 | 1 1 . . . 1 1 . . 1 . 1 Core 3 | . . 1 . . 1 . . 1 . . . Reactor . | . . . . . . . . . . . . Propulsion 34 | 2 3 . 1 . 6 5 4 2 3 . 8 Treads 14 | 2 . . . . . 3 4 2 2 . 1 Leg 12 | . 3 . 1 . 6 2 . . . . . Wheel 5 | . . . . . . . . . 1 . 4 Hover 1 | . . . . . . . . . . . 1 Flight 2 | . . . . . . . . . . . 2 Utility 52 | 2 4 1 2 . 5 5 4 8 10 . 11 Device 19 | 1 1 1 1 . 3 1 1 3 3 . 4 Storage 8 | 1 1 . . . 1 1 . . 1 . 3 Processor 8 | . 1 . . . . 2 . . 3 . 2 Hackware 9 | . . . . . . . 2 2 3 . 2 Protection 8 | . 1 . 1 . 1 1 1 3 . . . Artifact . | . . . . . . . . . . . . Weapon 32 | 2 6 . . . 3 6 2 3 6 . 4 Energy Gun 7 | 1 4 . . . . . 1 . 1 . . Energy Cannon 1 | . . . . . . . . . 1 . . Ballistic Gun 13 | 1 1 . . . 2 5 . 2 2 . . Ballistic Cannon 2 | . . . . . . . . . . . 2 Launcher 2 | . . . . . 1 . . 1 . . . Special Weapon 5 | . 1 . . . . . 1 . 2 . 1 Impact Weapon 1 | . . . . . . 1 . . . . . Slashing Weapon . | . . . . . . . . . . . . Piercing Weapon . | . . . . . . . . . . . . Special Melee Weapon 1 | . . . . . . . . . . . 1 Unidentified Prototypes 7 | . . . 1 . . 2 1 . 1 . 2 Parts Lost 20 | . 3 1 . . 5 . 1 1 . 3 6 Power 4 | . 1 1 . . 1 . . 1 . . . Propulsion 4 | . 1 . . . 2 . . . . . 1 Utility 6 | . 1 . . . . . 1 . . 1 3 Weapon 6 | . . . . . 2 . . . . 2 2 Highest Loss Streak 3 | . 3 1 . . 3 . 1 1 . 3 3 To Critical Strikes . | . . . . . . . . . . . . Average Backups 18 | 3 12 14 13 10 13 21 24 24 24 21 4 Power 1 | . . . . . . 1 1 . 1 1 . Propulsion 2 | . 2 2 1 1 1 2 2 4 3 2 . Utility 10 | 1 5 8 7 6 8 14 16 13 12 11 1 Weapon 3 | 1 3 4 4 3 3 2 3 5 5 4 . Tool/Special . | . . . . . . . . . . . . Unused Backups 41 | . . 3 1 . 1 7 2 3 4 14 6 Power 6 | . . . . . . . . . 1 2 3 Propulsion 3 | . . . . . . 1 . . 1 1 . Utility 25 | . . 3 1 . 1 5 2 2 2 7 2 Weapon 7 | . . . . . . 1 . 1 . 4 1 Tool/Special . | . . . . . . . . . . . . Average Slot Usage (%) 86 | . 98 99 72 100 75 78 99 100 96 74 40 Engine 6 | . 14 . . . 6 9 8 3 5 5 5 Core 2 | . . 13 14 14 2 . . 5 1 . . Treads 11 | . 6 . . . . 5 27 27 18 5 3 Leg 10 | . 21 28 28 28 26 21 . . . . . Wheel 1 | . . . . . . . . . 1 5 7 Device 6 | . 2 7 14 14 8 1 1 8 10 . 3 Storage 8 | . 14 14 14 14 9 9 9 9 7 5 3 Processor 3 | . . . . . . 7 6 . 6 5 . Hackware 1 | . . . . . . . 1 . 3 12 5 Protection 7 | . 9 6 . . 8 9 9 8 6 5 . Energy Gun 2 | . 12 14 . 14 2 . . . . . . Ballistic Gun 19 | . 13 14 . 14 10 13 33 34 26 23 . Impact Weapon 1 | . . . . . . 1 1 . 3 . 4 Peak Build Rating 60 | 7 11 13 16 14 54 60 45 46 55 55 39 Average Rating 38 | 5 9 12 10 14 45 53 43 43 49 44 20 On Entrance 24 | . 7 11 12 14 14 54 41 45 42 55 1 Naked Turns 67 | . . . . . . . . . . 40 27 Heaviest Build 121 | 12 33 35 31 31 46 113 110 115 121 113 108 Greatest Support 65 | 40 40 20 20 20 39 60 63 65 62 28 44 Greatest Overweight (x) 4 | . 1 1 1 1 2 2 1 1 4 4 2 Average Overweight (x) 1 | . . 1 1 1 1 1 1 1 2 1 . Largest Inventory Capacity 25 | 8 15 15 15 15 15 25 25 25 25 25 25 Average Capacity 20 | 6 14 15 15 15 15 23 25 25 25 21 8 Most Carried 25 | 7 15 15 15 13 15 25 25 25 25 25 9 Average Carried 18 | 3 12 14 14 13 14 21 24 24 24 21 4 Final Capacity 25 | 8 15 15 15 15 15 25 25 25 25 5 5 Final Carried 25 | 7 15 15 13 13 15 23 25 24 25 5 5 Class Distribution -------------------- 28% | Skirmisher 24% | Mutant 18% | Scavenger-Skirmisher 17% | Bothacker-Skirmisher 7% | Scavenger-Tank Dominant Class ---------------- Mutant | -10/Materials Mutant | -10/Mines Mutant | -10/Exiles Mutant | -9/Mines Skirmisher | -8/Materials Bothacker-Skirmisher | -8/Garrison Bothacker-Skirmisher | -8/Materials Scavenger-Skirmisher | -8/Garrison Skirmisher | -7/Factory Skirmisher | -7/Waste Mutant | -7/Factory Resources | -11 -10 -10 -10 -9 -8 -8 -8 -8 -7 -7 -7 ----------- Run | Yrd Mat Min Exi Min Mat Gar Mat Gar Fac Was Fac Matter Collected 7617 | 229 304 53 . . 1314 1616 1120 1144 1125 . 712 Remotely 1394 | . 10 . . . 452 87 122 478 245 . . Salvage Created 8227 | 84 695 61 . . 1600 1274 1474 1214 1240 . 585 Parts 452 | 8 33 6 . . 74 79 80 67 72 . 33 Haulers Intercepted 15 | . 2 . . . 3 . 5 . 3 . 2 Recyclers Shooed 4 | . 2 . . . 1 . . . 1 . . Parts Field Recycled . | . . . . . . . . . . . . Retrieved Matter . | . . . . . . . . . . . . Parts Self-Destructed . | . . . . . . . . . . . . Prevented . | . . . . . . . . . . . . Kills | -11 -10 -10 -10 -9 -8 -8 -8 -8 -7 -7 -7 ------- Run | Yrd Mat Min Exi Min Mat Gar Mat Gar Fac Was Fac Combat Hostiles Destroyed 155 | . 11 2 . . 30 30 24 33 13 . 12 Melee 1 | . . . . . . . . . . . 1 Guns 127 | . 11 2 . . 23 30 20 28 13 . . Cannons 6 | . . . . . . . . . . . 6 AOE 19 | . . . . . 7 . 4 4 . . 4 Classes Destroyed 15 | 2 4 . . . 3 3 . 2 1 . . Worker 7 | . . . . . 1 . . . 4 . 2 Builder 3 | . . . . . 1 . . . . . 2 Tunneler 4 | 1 1 1 . . . . 1 . . . . Hauler 15 | . 2 . . . 3 . 5 . 3 . 2 Recycler 14 | 1 2 . . . 2 . 3 . 3 . 3 Operator 3 | . . . . . . . . . 2 . 1 Watcher 11 | . 2 . . . 3 . 4 . 1 . 1 Swarmer 43 | . 3 2 . . 9 6 6 13 . . 4 Grunt 61 | . 8 . . . 16 12 11 7 3 . 4 Brawler 2 | . . . . . . 1 . 1 . . . Duelist 1 | . . . . . . . . 1 . . . Sentry 21 | . . . . . 5 3 7 1 4 . 1 Specialist 3 | . . . . . . 2 . 1 . . . Hunter 7 | . . . . . . . . 6 . . 1 Programmer 16 | . . . . . . 5 . 3 6 . 2 Thug 1 | . . . . . . 1 . . . . . Best Kill Streak 10 | 1 3 2 . . 7 4 8 9 4 . 10 Combat Bots Only 9 | . 3 2 . . 5 4 5 9 3 . 6 Max Kills in Single Turn 8 | 1 1 1 . . 2 2 3 2 2 . 8 Gunslinging 1 | . . . . . . . 1 1 . . . Exploded 4 | . . . . . 2 . 3 1 . . 4 Melee 1 | . . . . . . . . . . . 1 Uniques/NPCs Destroyed . | . . . . . . . . . . . . Combat | -11 -10 -10 -10 -9 -8 -8 -8 -8 -7 -7 -7 -------- Run | Yrd Mat Min Exi Min Mat Gar Mat Gar Fac Was Fac Hostile Shots Fired 772 | . 62 28 . . 101 80 75 114 144 3 165 Missed 258 | . 21 4 . . 30 22 22 39 50 . 70 Hits 514 | . 41 24 . . 71 58 53 75 94 3 95 Melee 5 | . . . . . . 1 . 1 . 3 . Projectile 509 | . 41 24 . . 71 57 53 74 94 . 95 Critical Strikes 21 | . 1 . . . 3 4 1 4 5 . 3 Damage Taken 7250 | . 528 194 . . 1150 859 750 1155 819 118 1677 Core 1302 | . 71 26 . . 166 113 70 148 59 45 604 Absorbed by Shields 179 | . . . . . . 19 . 31 129 . . Core Remaining (%) 56 | 100 . . . 61 . . . 9 . . . Volleys Fired 494 | 4 83 10 . . 87 72 69 72 61 3 33 Largest 4 | 2 2 2 . . 3 4 4 4 4 4 2 Hottest 112 | 70 100 76 . . 96 80 80 96 112 112 80 Shots Fired 1119 | 8 150 20 . . 135 97 215 215 216 10 53 Gun 1004 | 8 137 20 . . 128 97 198 195 211 10 . Cannon 53 | . . . . . . . . . . . 53 Launcher 27 | . . . . . 7 . 5 15 . . . Special 35 | . 13 . . . . . 12 5 5 . . Kinetic 952 | 4 70 10 . . 104 97 198 195 211 10 53 Thermal 118 | 4 80 10 . . 24 . . . . . . Explosive 12 | . . . . . 7 . 5 . . . . Electromagnetic 15 | . . . . . . . . 15 . . . Robot Hit Streak 21 | 6 9 5 . . 10 15 16 21 12 9 8 Robot Miss Streak 7 | . 3 7 . . 7 5 4 6 4 1 3 Penetration Max 1 | . . . . . . . . . 1 . . Secondary Targets 19 | . 2 . . . . 4 2 9 2 . . Max Gunslinging Chain 1 | . 1 . . . . 1 1 1 1 . . Shots Hit Robots 669 | 6 87 9 . . 89 59 118 125 124 9 43 Core Hits 345 | 3 37 3 . . 71 48 60 56 45 . 22 Critical Kills 5 | . . . . . . . . . 3 . 2 Critical Parts Destroyed 7 | . . . . . . . . . 5 . 2 Critical Strikes 15 | 2 . . . . . . . . 8 . 5 Burn 2 | 2 . . . . . . . . . . . Destroy 8 | . . . . . . . . . 8 . . Blast 1 | . . . . . . . . . . . 1 Smash 4 | . . . . . . . . . . . 4 Melee Attacks 68 | . . . . . . 8 1 4 16 . 39 Impact 67 | . . . . . . 8 1 4 16 . 38 Slashing . | . . . . . . . . . . . . Piercing . | . . . . . . . . . . . . Sneak Attacks 3 | . . . . . . . . . . . 3 Combat Hostiles . | . . . . . . . . . . . . Follow-up Attacks . | . . . . . . . . . . . . Damage Inflicted 19363 | 63 856 123 . . 3824 2831 3010 2992 2752 184 2728 Guns 14706 | 63 856 123 . . 3110 2831 2353 2524 2662 184 . Cannons 888 | . . . . . . . . . . . 888 Explosions 2986 | . . . . . 714 . 657 468 . . 1147 Melee 778 | . . . . . . . . . 90 . 688 Ramming 5 | . . . . . . . . . . . 5 Kinetic 14762 | 15 348 50 . . 2907 2831 2353 2524 2662 184 888 Thermal 1979 | 48 508 73 . . 203 . . . . . 1147 Explosive 1271 | . . . . . 614 . 657 . . . . Electromagnetic 568 | . . . . . 100 . . 468 . . . Impact 778 | . . . . . . . . . 90 . 688 Slashing . | . . . . . . . . . . . . Piercing . | . . . . . . . . . . . . Highest Corruption 10 | . 1 1 1 1 . 7 10 10 5 5 10 Average Corruption 4 | . 1 1 1 1 . 4 9 10 2 5 5 Corruption Purged 1 | . . . . . . . . . . . 1 Corruption Blocked . | . . . . . . . . . . . . Effects 277 | . 10 4 4 . . 45 66 63 42 5 38 Message Errors 80 | . 3 . . . . 11 24 18 16 1 7 Matter Fused 58 | . 1 1 1 . . 11 10 11 10 4 9 Heat Flow Errors 36 | . 1 2 . . . 2 6 12 5 . 8 Energy Discharges 27 | . 2 1 . . . 4 6 6 1 . 7 Parts Rejected 5 | . . . . . . . 3 . 1 . 1 Parts Fused 5 | . . . . . . 2 2 . . . 1 Data Loss (minor) 29 | . 3 . 2 . . 8 6 3 5 . 2 Data Loss (major) 11 | . . . 1 . . 3 3 1 1 . 2 Misfires 10 | . . . . . . 4 1 2 3 . . Alerts 4 | . . . . . . . 2 2 . . . Misdirections 1 | . . . . . . . . . . . 1 Weapon Failures 11 | . . . . . . . 3 8 . . . Overload Shots . | . . . . . . . . . . . . Overflow Damage 428 | . . . . . . . . . 30 . 398 Projectiles . | . . . . . . . . . . . . Explosions 177 | . . . . . . . . . . . 177 Melee 251 | . . . . . . . . . 30 . 221 Knockbacks 11 | . . . . . . . . . . . 11 Impact 4 | . . . . . . . . . . . 4 Kinetic 7 | . . . . . . . . . . . 7 Secondary . | . . . . . . . . . . . . Self-Inflicted Damage 214 | . . . . . 68 . . 104 . . 42 Shots 11 | . . . . . 3 . . 7 . . 1 Rammed 4 | . . . . . . . . . 1 . 3 Targets Rammed 5 | . . . . . . . . . 1 . 4 Kicked . | . . . . . . . . . . . . Crushed 1 | . . . . . . . . . . . 1 Highest Temperature 377 | 70 252 253 . . 334 314 377 310 240 68 253 Average Temperature 78 | 35 47 101 . . 82 77 83 115 37 35 95 Received Heat Transfer 2099 | . 270 . . . 576 225 297 274 169 . 288 Effects 4 | . . 1 . . . . 2 1 . . . Energy Bleed 1 | . . 1 . . . . . . . . . Interference 2 | . . . . . . . 2 . . . . Damage (minor) 1 | . . . . . . . . 1 . . . Siege Activations . | . . . . . . . . . . . . Martial Activations . | . . . . . . . . . . . . Shielding Activations . | . . . . . . . . . . . . Robots Disrupted . | . . . . . . . . . . . . Combat Hostiles . | . . . . . . . . . . . . Robots Corrupted 5 | . . . . . . . . 1 1 . 3 Combat Hostiles 2 | . . . . . . . . 1 . . 1 Parts Fried 13 | . . . . . . . . 3 3 . 7 Impact Corruptions 13 | . . . . . . . . . 2 . 11 Robots Melted . | . . . . . . . . . . . . Combat Hostiles . | . . . . . . . . . . . . Parts Melted . | . . . . . . . . . . . . Heat Transferred 2949 | 296 1150 185 . . 518 . . . . . 800 Parts Sabotaged . | . . . . . . . . . . . . Parts Stolen . | . . . . . . . . . . . . Parts Stripped . | . . . . . . . . . . . . Power Chain Reactions 1 | . . . . . . . . 1 . . . Alert | -11 -10 -10 -10 -9 -8 -8 -8 -8 -7 -7 -7 ------- Run | Yrd Mat Min Exi Min Mat Gar Mat Gar Fac Was Fac Maximum Alert Level 5 | . . . . . 1 5 3 4 2 . 2 Low Security (%) 51 | 100 100 100 . 100 72 . . 4 80 100 59 Level 1 15 | . . . . . 27 28 25 18 12 . 2 Level 2 16 | . . . . . . 16 56 25 7 . 37 Level 3 10 | . . . . . . 27 18 36 . . . Level 4 5 | . . . . . . 24 . 15 . . . Level 5 . | . . . . . . 2 . . . . . High Security . | . . . . . . . . . . . . Max Security . | . . . . . . . . . . . . Peak Influence 1678 | 5 100 40 . 6 340 1678 817 1152 604 89 565 Initial 817 | . . . . . . 198 817 185 604 89 . Average 324 | . 25 3 . . 128 800 509 715 124 41 207 Influence Increases 6366 | 10 375 55 . 6 1118 1480 845 1017 573 . 887 Destroy 0b10 Robot/C 3220 | . 220 40 . . 660 600 520 680 260 . 240 Destroy 0b10 Robot/NC 285 | 10 35 5 . . 50 . 65 . 65 . 55 Destroy Leader 632 | . 58 10 . . 162 30 168 20 118 . 66 Allied During Kill 34 | . . . . . 23 1 5 5 . . . Successful Hack 146 | . 36 . . 6 27 7 14 16 28 . 12 Disable Machine 480 | . . . . . 60 . 45 . 75 . 300 Anti-Garrison Action 1000 | . . . . . . 750 . 250 . . . Destroy Structure 344 | . 11 . . . 91 92 28 31 12 . 79 Partial Spotted 15 | . 15 . . . . . . . . . . Lose Combat Pursuer 210 | . . . . . 45 . . 15 15 . 135 Influence Decreases 5818 | 10 374 56 . 6 812 108 2238 150 1469 256 339 Entered New Map 1785 | . . 1 . . . 108 861 100 548 167 . Time Decay 2554 | 10 344 55 . 6 552 . 592 . 646 70 279 Lost Part 179 | . 30 . . . 50 . 10 10 . 19 60 Lost Ally 200 | . . . . . 60 . 100 40 . . . Purge Threat 1100 | . . . . . 150 . 675 . 275 . . Squads Dispatched 39 | . 4 . . . 5 . 7 . 11 . 12 Investigation 6 | . 3 . . . 1 . 1 . . . 1 Extermination 11 | . . . . . . . . . 7 . 4 Reinforcement 14 | . 1 . . . 3 . 3 . 4 . 3 Assault 1 | . . . . . . . . . . . 1 Garrison 7 | . . . . . 1 . 3 . . . 3 Intercept . | . . . . . . . . . . . . Searches Triggered . | . . . . . . . . . . . . Construction Impeded 1 | . . . . . . . . . . . 1 Haulers Reinforced 1 | . . . . . . . . . 1 . . Active Scanning Responses . | . . . . . . . . . . . . Cargo Convoy Interrupts 2 | . . . . . . . . . 1 . 1 Stealth | -11 -10 -10 -10 -9 -8 -8 -8 -8 -7 -7 -7 --------- Run | Yrd Mat Min Exi Min Mat Gar Mat Gar Fac Was Fac Distress Signals 16 | . 3 . . . 7 . 4 . 1 . 1 Communications Jammed 17 | . . . . . . . . . . . 17 Distress Signals 17 | . . . . . . . . . . . 17 Times Spotted 258 | . 20 3 . . 42 28 42 37 31 6 49 Peak Tracking Total 17 | . 5 3 . . 6 4 7 9 3 6 17 Tactical Retreats 10 | . . . . . 2 . . 1 1 . 6 Traps | -11 -10 -10 -10 -9 -8 -8 -8 -8 -7 -7 -7 ------- Run | Yrd Mat Min Exi Min Mat Gar Mat Gar Fac Was Fac Traps Triggered 22 | . 2 . . . 1 5 2 8 2 . 2 Indirectly . | . . . . . . . . . . . . Trap Hack Attempts . | . . . . . . . . . . . . Triggered . | . . . . . . . . . . . . Disarmed . | . . . . . . . . . . . . Reprogrammed . | . . . . . . . . . . . . Reused . | . . . . . . . . . . . . Traps Extracted . | . . . . . . . . . . . . Installed . | . . . . . . . . . . . . Triggered . | . . . . . . . . . . . . Machines | -11 -10 -10 -10 -9 -8 -8 -8 -8 -7 -7 -7 ---------- Run | Yrd Mat Min Exi Min Mat Gar Mat Gar Fac Was Fac Machines Disabled 43 | . . . . . 4 9 3 2 5 . 20 Max in Single Turn 13 | . . . . . 1 2 1 1 1 . 13 Garrison Relay 7 | . . . . . . 5 . 2 . . . Machines Repaired . | . . . . . . . . . . . . Machines Dismantled . | . . . . . . . . . . . . Machines Sabotaged . | . . . . . . . . . . . . Overloaded Fab Kills . | . . . . . . . . . . . . Hacking | -11 -10 -10 -10 -9 -8 -8 -8 -8 -7 -7 -7 --------- Run | Yrd Mat Min Exi Min Mat Gar Mat Gar Fac Was Fac Machines Accessed 52 | . 10 1 2 1 9 4 9 3 7 . 6 Terminals 44 | . 8 1 . 1 8 4 8 3 7 . 4 Fabricators 1 | . . . . . . . . . . . 1 Repair Stations . | . . . . . . . . . . . . Recycling Units 3 | . 2 . . . . . . . . . 1 Scanalyzers . | . . . . . . . . . . . . Garrison Access 2 | . . . . . 1 . 1 . . . . Total Hacks 132 | . 30 2 2 2 31 6 23 5 18 . 13 Successful 48 | . 13 . 2 2 15 1 9 1 3 . 2 Failed 84 | . 17 2 . . 16 5 14 4 15 . 11 Catastrophic 13 | . 1 . . . . 1 4 1 3 . 3 Database Lockouts . | . . . . . . . . . . . . Manual 89 | . 23 2 1 1 24 2 20 2 8 . 6 Terminals 118 | . 27 2 . 2 29 6 22 5 18 . 7 Fabricators 4 | . . . . . . . . . . . 4 Repair Stations . | . . . . . . . . . . . . Recycling Units 5 | . 3 . . . . . . . . . 2 Scanalyzers . | . . . . . . . . . . . . Garrison Access 3 | . . . . . 2 . 1 . . . . Terminal Hacks 19 | . 2 . 2 2 4 1 4 1 3 . . Record 2 | . . . 1 1 . . . . . . . Robot Analysis 1 | . . . . . 1 . . . . . . Prototype ID Bank 1 | . 1 . . . . . . . . . . Open Door 1 | . . . . . . 1 . . . . . Branch Access Points 1 | . . . . . . . 1 . . . . Terminal Index 4 | . 1 . . . 1 . 1 . 1 . . Unreport Threat 3 | . . . . . 1 . 2 . . . . Zone Layout 4 | . . . . 1 1 . . . 2 . . Security Stations 1 | . . . . . . . . 1 . . . Proto ID Catalog 1 | . . . 1 . . . . . . . . Fabricator Hacks 1 | . . . . . . . . . . . 1 Network Status 1 | . . . . . . . . . . . 1 Repair Station Hacks . | . . . . . . . . . . . . Recycling Unit Hacks 1 | . 1 . . . . . . . . . . Report Inventory 1 | . 1 . . . . . . . . . . Scanalyzer . | . . . . . . . . . . . . Garrison Access Hacks 2 | . . . . . 1 . 1 . . . . Unlock Access 2 | . . . . . 1 . 1 . . . . Unauthorized Hacks 25 | . 10 . . . 10 . 4 . . . 1 Terminals 24 | . 10 . . . 10 . 4 . . . . Botnet 12 | . 3 . . . 5 . 4 . . . . Operators 1 | . 1 . . . . . . . . . . Skim 11 | . 6 . . . 5 . . . . . . Fabricators 1 | . . . . . . . . . . . 1 Liberate 1 | . . . . . . . . . . . 1 Repair Stations . | . . . . . . . . . . . . Recycling Units . | . . . . . . . . . . . . Scanalyzers . | . . . . . . . . . . . . Garrison Access . | . . . . . . . . . . . . Data Cores Recovered 1 | . . . . . . . . . 1 . . Used . | . . . . . . . . . . . . Hacking Detections 45 | . 9 1 . 1 7 3 8 3 7 . 6 Full Trace Events 5 | . 1 . . . . . 2 1 . . 1 Feedback Events 2 | . 1 . . . . . . . . . 1 Corruption 2 | . 1 . . . . . . . . . 1 Feedback Blocked . | . . . . . . . . . . . . Robot Schematics Acquired . | . . . . . . . . . . . . Robots Built . | . . . . . . . . . . . . Authchips . | . . . . . . . . . . . . Time . | . . . . . . . . . . . . Total Robot Build Rating . | . . . . . . . . . . . . Part Schematics Acquired . | . . . . . . . . . . . . Parts Built . | . . . . . . . . . . . . Authchips . | . . . . . . . . . . . . Time . | . . . . . . . . . . . . Total Part Build Rating . | . . . . . . . . . . . . Parts Repaired . | . . . . . . . . . . . . Time . | . . . . . . . . . . . . Parts Recycled . | . . . . . . . . . . . . Recycled Matter . | . . . . . . . . . . . . Retrieved Matter . | . . . . . . . . . . . . Retrieved Components . | . . . . . . . . . . . . Parts Scanalyzed . | . . . . . . . . . . . . Part Schematics Acquired . | . . . . . . . . . . . . Parts Damaged . | . . . . . . . . . . . . Bothacking | -11 -10 -10 -10 -9 -8 -8 -8 -8 -7 -7 -7 ------------ Run | Yrd Mat Min Exi Min Mat Gar Mat Gar Fac Was Fac Used RIF Installer 3 | . . . . . . 2 . 1 . . . Command Fork 1 | . . . . . . . . 1 . . . Structural Interface 1 | . . . . . . 1 . . . . . Robots Hacked 8 | . . . . . . . 3 2 3 . . Non-combat 4 | . . . . . . . 1 . 3 . . Combat 4 | . . . . . . . 2 2 . . . Robot Hacks Applied 15 | . . . . . . . 7 3 5 . . parse_system 2 | . . . . . . . 1 . 1 . . purge_threat 5 | . . . . . . . 3 . 2 . . locate_traps 2 | . . . . . . . 1 . 1 . . link_fov 1 | . . . . . . . . . 1 . . reboot_system 1 | . . . . . . . . 1 . . . formatsys_high 4 | . . . . . . . 2 2 . . . Relay Couplers Released 31 | . . . . . . 21 . 10 . . . Machine Destruction 31 | . . . . . . 21 . 10 . . . Attached 6 | . . . . . . . 2 2 2 . . Fabnet Peak Effective % . | . . . . . . . . . . . . Robots Rewired 3 | . . . . . . 3 . . . . . Allies Hacked . | . . . . . . . . . . . . Hacks Repelled . | . . . . . . . . . . . . Allies | -11 -10 -10 -10 -9 -8 -8 -8 -8 -7 -7 -7 -------- Run | Yrd Mat Min Exi Min Mat Gar Mat Gar Fac Was Fac Total Allies 11 | . . 3 . . . 4 2 2 . . . Largest Group 3 | . . 3 3 3 3 3 3 1 . . . Highest-Rated Group 40 | . . 40 40 40 40 31 32 15 . . . Highest-Rated Ally 31 | . . 16 16 16 16 31 16 15 . . . Total Orders 1 | . . . . . . . . 1 . . . STAY 1 | . . . . . . . . 1 . . . Ally Attacks 48 | . . . . . 20 2 20 6 . . . Total Damage 609 | . . . . . 142 51 272 144 . . . Kills 6 | . . . . . 3 . 2 1 . . . Allies Corrupted . | . . . . . . . . . . . . Allies Melted . | . . . . . . . . . . . . Intel | -11 -10 -10 -10 -9 -8 -8 -8 -8 -7 -7 -7 ------- Run | Yrd Mat Min Exi Min Mat Gar Mat Gar Fac Was Fac Active Infowar (turns) 2357 | 53 370 375 428 89 427 335 1 . . . 279 Sensors 2 | . . . 2 . . . . . . . . Structural 386 | . . . . . . 156 1 . . . 229 Seismic 1864 | 53 315 375 426 89 427 179 . . . . . T.N.C. 55 | . 55 . . . . . . . . . . Jamming 273 | . . . . . . . . . . . 273 Robot Analysis Total 1 | . . . . . 1 . . . . . . Derelict Logs Recovered 1 | . . 1 . . . . . . . . . Drone Launches . | . . . . . . . . . . . . Drone Recoveries . | . . . . . . . . . . . . Exploration | -11 -10 -10 -10 -9 -8 -8 -8 -8 -7 -7 -7 ------------- Run | Yrd Mat Min Exi Min Mat Gar Mat Gar Fac Was Fac Turns Passed 16446 | 122 1551 667 429 89 2145 2464 1867 1647 3849 205 1411 Spaces Moved 7078 | 61 671 330 220 46 757 928 624 572 1581 149 1139 Core 557 | 3 . . . . . . . . . 79 475 Treads 2595 | 58 122 . . . . 190 624 572 1000 . 29 Legs 2640 | . 549 330 220 46 757 738 . . . . . Wheels 1171 | . . . . . . . . . 581 70 520 Hover . | . . . . . . . . . . . . Flight 115 | . . . . . . . . . . . 115 Fastest Speed 34 | 50 160 190 190 190 190 120 240 235 145 50 34 Average Speed 187 | 154 184 190 190 190 190 238 240 238 207 101 77 Slowest Speed 262 | 160 190 190 190 190 260 262 240 240 238 160 160 Overloaded Moves . | . . . . . . . . . . . . Propulsion Burnouts . | . . . . . . . . . . . . Robots Hopped 3 | . . . . . . . . . . . 3 Potential Cave-ins . | . . . . . . . . . . . . Cave-ins Triggered . | . . . . . . . . . . . . Exploration Rate (%) 58 | 5 98 60 61 22 74 96 68 66 43 73 30 Regions Visited 11 Branch Regions 3 Pre-discovered Areas 5 | . 1 1 1 . 2 . . . . . . Known Exits Taken 3 | . . . . 1 1 . 1 . . . . Unknown Exits Taken 4 | 1 1 1 1 . . . . . . . . Scrap Searched 1 | . . 1 . . . . . . . . . Spaces Dug 40 | . 10 . . . 3 2 1 . 10 . 14 Terrain Destroyed 255 | . 12 . . . 98 2 22 9 11 . 101 Melee 27 | . . . . . . 2 1 . 10 . 14 Projectile 77 | . 12 . . . 57 . . 1 1 . 6 AOE 151 | . . . . . 41 . 21 8 . . 81 Terrain Rammed . | . . . . . . . . . . . . Walls Destroyed . | . . . . . . . . . . . . Machines Disabled . | . . . . . . . . . . . . Actions | -11 -10 -10 -10 -9 -8 -8 -8 -8 -7 -7 -7 --------- Run | Yrd Mat Min Exi Min Mat Gar Mat Gar Fac Was Fac Total 9580 | 78 817 352 234 48 1399 1165 951 792 2006 195 1543 Wait 1460 | . 26 2 . 3 507 22 215 82 274 41 288 Move 7061 | 60 670 329 219 45 756 926 623 571 1581 148 1133 Hop 3 | . . . . . . . . . . . 3 Pick Up 101 | 7 12 5 1 . 14 25 10 10 10 1 6 Fast Attach 75 | 7 4 . . . 5 10 3 5 16 . 25 Attach 33 | . 2 1 3 . 5 10 4 3 2 . 3 Detach 13 | . . . 2 . 1 5 . 1 2 . 2 Swap 96 | . 13 1 3 . 12 10 16 20 18 1 2 Drop 109 | . 7 4 6 . 12 24 10 15 25 1 5 Fire 494 | 4 83 10 . . 87 72 69 72 61 3 33 Melee 68 | . . . . . . 8 1 4 16 . 39 Ram . | . . . . . . . . . . . . Kick . | . . . . . . . . . . . . Crush 5 | . . . . . . . . . 1 . 4 Escape Stasis 24 | . . . . . . 16 . 8 . . . Rewire 38 | . . . . . . 37 . 1 . . . Trap . | . . . . . . . . . . . . Miscellaneous . | . . . . . . . . . . . . Route ------- -11/Scrapyard -10/Materials (discovered 4 exits: *Mat x3 / *Min) -10/Mines (discovered 3 exits: *Mat x2 / *Exi) -10/Exiles -9/Mines (discovered 2 exits: *Mat x2) -8/Materials (discovered 4 exits: *Fac x3 / Gar) -8/Garrison (discovered 3 exits: *Mat x3) -8/Materials (discovered 4 exits: *Fac x3 / Gar) -8/Garrison (discovered 2 exits: *Fac x2) -7/Factory -7/Waste -7/Factory (discovered 1 exit: [*Fac]) History --------- Turn | Location | Event 9 | -11/Scrapyard | Discovered new exit (range 15) 123 | -11/Scrapyard | Entered Materials 310 | -10/Materials | Build established: Mutant 483 | -10/Materials | Lost 3 parts (1p1n1u) 605 | -10/Materials | Discovered new exit (range 6) 814 | -10/Materials | Discovered new exit (range 14) 1249 | -10/Materials | Identified exit to Materials 1278 | -10/Materials | Learned Storage trap positions 1302 | -10/Materials | Learned Storage trap positions 1303 | -10/Materials | Learned location of Mines (-9) 1305 | -10/Materials | Learned 2 Materials zone layouts 1315 | -10/Materials | Learned Materials emergency access door positions 1674 | -10/Materials | Entered Mines 2118 | -10/Mines | Found a damaged Exp. Sensor Array with a note attached 2122 | -10/Mines | Found Prototype Device 2235 | -10/Mines | Assisted by bots powering up and referring to "LRC-V3" 2323 | -10/Mines | Assembled infested the area 2330 | -10/Mines | Deemed a non-threat by the Exiles lab entrance 2330 | -10/Mines | Discovered new exit (range 5) 2341 | -10/Mines | Entered Exiles 2341 | -10/Exiles | Accompanied by 3 allies 2391 | -10/Exiles | Met 8R-AWN 2423 | -10/Exiles | Met EX-HEX 2478 | -10/Exiles | Met EX-BIN 2499 | -10/Exiles | Aligned with FarCom system 2501 | -10/Exiles | Given EX-Vault access code 2547 | -10/Exiles | Opened EX-Vault 2561 | -10/Exiles | Identified Exp. Sensor Array 2569 | -10/Exiles | Found XL Autogun Array 2608 | -10/Exiles | Warned to stay clear of 0b10 Research branches 2662 | -10/Exiles | Met EX-DEC 2688 | -10/Exiles | Learned location of Zion (-7) 2747 | -10/Exiles | Discovered new exit (range 14) 2770 | -10/Exiles | Left Exiles lab with XL Autogun Array 2770 | -10/Exiles | Entered Mines 2770 | -9/Mines | Accompanied by 3 allies 2771 | -9/Mines | Identified exit to Materials 2859 | -9/Mines | Entered Materials 2859 | -8/Materials | Accompanied by 3 allies 2859 | -8/Materials | Evolved 4 slots: Propulsion x1, Utility x1, Weapon x2 3150 | -8/Materials | Build established: Scavenger-Skirmisher 3335 | -8/Materials | Discovered new exit (range 4) 3366 | -8/Materials | Lost 3 parts (1n2w) 3765 | -8/Materials | Build established: Skirmisher 4530 | -8/Materials | Identified exit to Garrison 4581 | -8/Materials | Discovered new exit (range 4) 4601 | -8/Materials | Learned Factory stockpile data 4674 | -8/Materials | Identified exit to Factory 4687 | -8/Materials | Garrison activated, responded to threat 4736 | -8/Materials | Learned 4 Factory zone layouts 4894 | -8/Materials | Learned Factory security intel 4963 | -8/Materials | Learned location of Lower Caves (-7) 5004 | -8/Materials | Entered Garrison 5178 | -8/Garrison | Triggered checkpoint 5329 | -8/Garrison | Installed Relay Interface Framework 5495 | -8/Garrison | Garrison Relay disabled 5592 | -8/Garrison | Expanded RIF knowledge: Structural Interface 5726 | -8/Garrison | Triggered checkpoint 5846 | -8/Garrison | Discovered new exit (range 10) 5950 | -8/Garrison | Triggered checkpoint 5981 | -8/Garrison | Garrison Relay disabled 6302 | -8/Garrison | Triggered checkpoint 6305 | -8/Garrison | Build established: Bothacker-Skirmisher 6383 | -8/Garrison | Discovered new exit (range 12) 6436 | -8/Garrison | Triggered checkpoint 6479 | -8/Garrison | Garrison Relay disabled 6537 | -8/Garrison | Garrison Relay disabled 6640 | -8/Garrison | Triggered checkpoint 6690 | -8/Garrison | Triggered checkpoint 6732 | -8/Garrison | Garrison Relay disabled 6753 | -8/Garrison | Rescued a captive Derelict 7097 | -8/Garrison | Discovered new exit (range 10) 7182 | -8/Garrison | Triggered checkpoint 7222 | -8/Garrison | Triggered checkpoint 7223 | -8/Garrison | Core integrity fell below 50% 7468 | -8/Garrison | Entered Materials 7468 | -8/Materials | Accompanied by 3 allies 7675 | -8/Materials | Discovered exit to Factory (range 16) 7738 | -8/Materials | Lost 3 allies 8019 | -8/Materials | System corruption reached 10% 8612 | -8/Materials | Discovered exit to Factory (range 14) 8858 | -8/Materials | Garrison activated, responded to threat 9145 | -8/Materials | Build established: Scavenger-Skirmisher 9300 | -8/Materials | Identified exit to Garrison 9335 | -8/Materials | Entered Garrison 9477 | -8/Garrison | Triggered checkpoint 9583 | -8/Garrison | Garrison Relay disabled 9681 | -8/Garrison | Triggered checkpoint 9741 | -8/Garrison | Destroyed 8 combat bots 9759 | -8/Garrison | Triggered checkpoint 9881 | -8/Garrison | Core integrity fell below 20% 9996 | -8/Garrison | Discovered exit to Factory (range 14) 10099 | -8/Garrison | Triggered checkpoint 10155 | -8/Garrison | Destroyed 9 combat bots 10225 | -8/Garrison | Garrison Relay disabled 10391 | -8/Garrison | Triggered checkpoint 10843 | -8/Garrison | Learned Factory security intel 10894 | -8/Garrison | Discovered exit to Factory (range 5) 10958 | -8/Garrison | Expanded RIF knowledge: Command Fork 10982 | -8/Garrison | Entered Factory 10982 | -7/Factory | Evolved 2 slots: Utility x2 11088 | -7/Factory | Build established: Skirmisher 11602 | -7/Factory | Discovered new exit (range 8) 11839 | -7/Factory | Build established: Scavenger-Skirmisher 12105 | -7/Factory | Cargo convoy interrupted 12290 | -7/Factory | Build established: Scavenger-Tank 13580 | -7/Factory | Build established: Tank 13949 | -7/Factory | Build established: Skirmisher 14831 | -7/Factory | Sucked down chute 14831 | -7/Factory | Entered Waste 14906 | -7/Waste | Spotted C-40 Crusher 14981 | -7/Waste | Spotted C-40 Crusher 14981 | -7/Waste | Spotted C-40 Crusher 14990 | -7/Waste | Crushed by Compactor (1 part destroyed, 1 dropped) 14993 | -7/Waste | Crushed by Compactor (1 part destroyed, 1 dropped) 14996 | -7/Waste | Released all parts (7) 15014 | -7/Waste | Spotted C-40 Crusher 15023 | -7/Waste | Spotted C-40 Crusher 15024 | -7/Waste | Lost 3 parts (1u2w) 15025 | -7/Waste | Spotted C-40 Crusher 15032 | -7/Waste | Discovered new exit (range 10) 15036 | -7/Waste | Entered Factory 15303 | -7/Factory | Build established: Mutant 15568 | -7/Factory | Garrison activated, responded to threat 16181 | -7/Factory | Cargo convoy interrupted 16183 | -7/Factory | Released all parts (8) 16186 | -7/Factory | Core integrity fell below 50% 16208 | -7/Factory | Lost 3 parts (2u1w) 16236 | -7/Factory | First assault squad dispatched 16329 | -7/Factory | System corruption reached 10% 16440 | -7/Factory | Core integrity fell below 20% 16441 | -7/Factory | Discovered new exit (range 12) 16447 | -7/Factory | Destroyed by H-61 Shepherd with Heavy Assault Cannon Last Messages --------------- 16395_ O-24 Administrator uses terminal to summon reinforcements. 16395_ ALERT: Hostiles spotted, dispatching reinforcements to Terminal F009. 16395_ O-24 Administrator locks terminal. 16396_ O-24 Administrator suffers critical hit (Smash). 16396_ O-24 Administrator destroyed. 16398_ Acquired 20 matter. 16399_ Acquired System Shield. 16402_ Acquired Imp. Datajack. 16403_ Dropped Imp. Ion Engine. 16404_ Acquired Lgt. Deuterium Engine. 16407_ Acquired Adv. Terrain Scan Processor. 16411_ MQXUMVC:ZQXOLTGFSX MR, 16429_ Acquired Prototype Flight Unit. 16429_ Identified Imp. Cesium-ion Thruster. 16430_ System corrupted: Matter fused (-10). 16441_ EXIT=FOUND 16445_ Hvy. Flail destroyed. 16445_ Acquired 3 matter. 16447_ Penetrated by Slug. Map ----- +----------------------------------------------------+ | ???????????????????????????????????????# " | | ???????????????????????????????????????# " | | ???????????????????????????????????????# " | | ???????????????????????????????????????# " | | ???????????????????????????????????????# " | | ???????????????????????????????????????# | | ????????????????? ????????????????????#####/# | | ??????????????#####+######???????????????# | | ??????????????# "################# | | ??????????????# ] g | | ??????????????# g ######### | | ??????????????#! g ^#???????# | | ??????????????# " g #???????### # | | ??????????????# #?????????# # | | ??????????????# ] #?????????# # | | ??????????????# #?????????# # | | ??????????????# ##########?????????# # | | ??????????????### ###??????????????????# # | | ????????????????# #????????????????????#+# | | ????????????????# #????????????????????# | | ????????????????# #????????????????????# | | ????????????????# #????????????????????# ! | | ????????????????# #????????????????????# | | ??????????????### #????????????????????# " | | ??????????????# #????????????????????# " | | ??????????????# H @#????????????????????? " | | ??????????????# H #?????????????????????? | | ??????????????# % #??????????????????????# | | ??????????????# #??????????????????????? | | ??????????????### #??????????????????????? | | ????????????????# #??????????????????????? | | ????????????????# ??????????????????????? | | ????????????????+ ??????????????????????? | | ????????????????# ??????????????????????? | | ????????????????# ??????????????????????? | | ????????????????# ??????????????????????? | | ????????????????# ??????????????????????? | | ????????????????# """??????????????????????? | | ????????????????# ""F"??????????????????????? | | ????????????????? "?????????????????????????? | | ?????????????????????????????????????????????? | | ?????????????????????????????????????????????? | | ?????????????????????????????????????????????? | | ?????????????????????????????????????????????? | | ?????????????????????????????????????????????? | | ?????????????????????????????????????????????? | | ?????????????????????????????????????????????? | | ?????????????????????????????????????????????? | | ?????????????????????????????????????????????? | | ?????????????????????????????????????????????? | +----------------------------------------------------+ Best States ------------- Heat Dissipation 61 Energy Generation 16 Energy Capacity 290 Matter Stores 300 Matter Capacity 450 Sight Range 16 Terrain Scan Density 210 Jamming Range 12 Armor Coverage 300 Evasion (%) 63 Targeting Accuracy 8 Target Analysis 5 Recoil Reduction 3 Salvage Targeting 2 Offensive Hacking 10 Defensive Hacking 10 Relay Coupler Types 1 Relay Coupler Value 41 Item Schematics ----------------- None Robot Schematics ------------------ None Fabricated ------------ Nothing Repaired ---------- Nothing Alien Tech Used ----------------- None Achievements -------------- None Challenges ------------ None Game ------ Seed LongswordEfficiencyClaymores Manual? 0 Play Time 02:07:00 Cumulative 274.8 hours Start 2025.08.16 @ 16:39:43 End 2025.08.17 @ 09:20:49 Sessions 5 Manual Loads 0 Difficulty Rogue Special Mode None Game No. 125 Rogue 104 Adventurer 21 Explorer 0 Win Type - Total 13 Types 9/0/3/1/0/0/0/0/0/0 Lore% 49 Gallery% 67 Achievement% 61 Wizard Run 0 Options --------- Layout 1 ASCII 0 Keyboard 0 Movement Mouse Keybinds 0 Fullscreen 2 Font 32/SmallcapsGlow Map View 77x35 Zoom Use 0% Tactical HUD 1 Map Filters NONE Filters NONE Steam 1 RUN: 50913a3e-cf39-4ae9-96fa-5622f1488734